[Event "Titled Tuesday Blitz November 01 Late 2022"]
[White "Yuan, Qingyu"]
[Black "Krishnan, Varun"]
[WhiteFideId "8609772"]
[BlackFideId "5054508"]
[WhiteElo "2359"]
[BlackElo "2496"]
[Result "1-0"]
[Round "07"]
[TimeControl "180+1"]
[Date "2022.11.02"]
[WhiteClock "0:01:15"]
[BlackClock "0:00:02"]

1. e4 {[%clk 0:03:00]}  g6 {[%clk 0:03:00]} 2. d4 {[%clk 0:03:00]}  Bg7 {[%clk 0:03:00]} 3. Nf3 {[%clk 0:03:01]}  d6 {[%clk 0:03:00]} 4. h3 {[%clk 0:03:00]}  a6 {[%clk 0:03:01]} 5. a4 {[%clk 0:02:59]}  Nf6 {[%clk 0:02:59]} 6. Bd3 {[%clk 0:02:59]}  O-O {[%clk 0:02:59]} 7. O-O {[%clk 0:03:00]}  b6 {[%clk 0:02:47]} 8. Re1 {[%clk 0:02:59]}  Bb7 {[%clk 0:02:47]} 9. Nbd2 {[%clk 0:03:00]}  c5 {[%clk 0:02:43]} 10. c3 {[%clk 0:03:00]}  Nbd7 {[%clk 0:02:42]} 11. Nf1 {[%clk 0:03:00]}  e5 {[%clk 0:02:42]} 12. dxe5 {[%clk 0:02:58]}  Nxe5 {[%clk 0:02:41]} 13. Nxe5 {[%clk 0:02:56]}  dxe5 {[%clk 0:02:42]} 14. Qc2 {[%clk 0:02:44]}  Qd6 {[%clk 0:02:37]} 15. Bg5 {[%clk 0:02:39]}  Qc6 {[%clk 0:02:37]} 16. Bxf6 {[%clk 0:02:38]}  Bxf6 {[%clk 0:02:37]} 17. Ne3 {[%clk 0:02:38]}  b5 {[%clk 0:02:30]} 18. c4 {[%clk 0:02:23]}  b4 {[%clk 0:02:28]} 19. Nd5 {[%clk 0:02:21]}  Qd6 {[%clk 0:02:27]} 20. a5 {[%clk 0:02:19]}  Bxd5 {[%clk 0:02:26]} 21. cxd5 {[%clk 0:02:18]}  h5 {[%clk 0:02:20]} 22. Qa4 {[%clk 0:02:17]}  h4 {[%clk 0:02:19]} 23. Rac1 {[%clk 0:02:17]}  Be7 {[%clk 0:02:14]} 24. Rc4 {[%clk 0:02:15]}  f5 {[%clk 0:02:11]} 25. Qd1 {[%clk 0:02:11]}  f4 {[%clk 0:02:08]} 26. Qg4 {[%clk 0:02:10]}  Kg7 {[%clk 0:02:08]} 27. Be2 {[%clk 0:02:09]}  Rh8 {[%clk 0:02:06]} 28. Rec1 {[%clk 0:02:06]}  Rac8 {[%clk 0:02:02]} 29. Rxb4 {[%clk 0:02:05]}  cxb4 {[%clk 0:01:56]} 30. Rxc8 {[%clk 0:02:05]}  Rxc8 {[%clk 0:01:54]} 31. Qxc8 {[%clk 0:02:06]}  b3 {[%clk 0:01:49]} 32. Qxa6 {[%clk 0:01:53]}  Qb4 {[%clk 0:01:46]} 33. Qb5 {[%clk 0:01:47]}  Qd2 {[%clk 0:01:39]} 34. a6 {[%clk 0:01:44]}  Qxb2 {[%clk 0:01:34]} 35. Qb7 {[%clk 0:01:32]}  Qa1+ {[%clk 0:00:19]} 36. Kh2 {[%clk 0:01:28]}  Kf6 {[%clk 0:00:11]} 37. a7 {[%clk 0:01:23]}  b2 {[%clk 0:00:11]} 38. Bd3 {[%clk 0:01:20]}  Qe1 {[%clk 0:00:03]} 39. Qxb2 {[%clk 0:01:17]}  Qa5 {[%clk 0:00:02]} 40. Qb7 {[%clk 0:01:15]} 1-0


[Site "https://www.chess.com"]

[Event "Titled Tuesday Blitz November 01 Late 2022"]
[White "Zhigalko, Sergei"]
[Black "Lazavik, Denis"]
[WhiteFideId "13502956"]
[BlackFideId "13515110"]
[WhiteElo "2662"]
[BlackElo "2437"]
[Result "1-0"]
[Round "07"]
[TimeControl "180+1"]
[Date "2022.11.01"]
[WhiteClock "0:00:05"]
[BlackClock "0:00:17"]

1. e4 {[%clk 0:03:00]}  e5 {[%clk 0:03:00]} 2. Nf3 {[%clk 0:03:01]}  Nc6 {[%clk 0:03:01]} 3. Bc4 {[%clk 0:03:01]}  Bc5 {[%clk 0:03:00]} 4. O-O {[%clk 0:03:01]}  Nf6 {[%clk 0:03:00]} 5. d3 {[%clk 0:03:01]}  O-O {[%clk 0:02:58]} 6. Nbd2 {[%clk 0:03:01]}  d6 {[%clk 0:02:58]} 7. c3 {[%clk 0:03:02]}  a6 {[%clk 0:02:58]} 8. Bb3 {[%clk 0:03:01]}  h6 {[%clk 0:02:57]} 9. h3 {[%clk 0:02:58]}  Be6 {[%clk 0:02:57]} 10. Re1 {[%clk 0:02:56]}  Re8 {[%clk 0:02:54]} 11. Bxe6 {[%clk 0:02:46]}  Rxe6 {[%clk 0:02:54]} 12. Nb3 {[%clk 0:02:42]}  Ba7 {[%clk 0:02:54]} 13. Be3 {[%clk 0:02:43]}  Bxe3 {[%clk 0:02:48]} 14. Rxe3 {[%clk 0:02:43]}  Re8 {[%clk 0:02:46]} 15. Qc2 {[%clk 0:02:35]}  d5 {[%clk 0:02:43]} 16. Rae1 {[%clk 0:02:32]}  dxe4 {[%clk 0:02:41]} 17. dxe4 {[%clk 0:02:32]}  Qe7 {[%clk 0:02:41]} 18. Rd1 {[%clk 0:02:11]}  Rad8 {[%clk 0:02:39]} 19. Ree1 {[%clk 0:02:10]}  a5 {[%clk 0:02:36]} 20. Nc1 {[%clk 0:02:00]}  Qe6 {[%clk 0:02:34]} 21. a3 {[%clk 0:01:47]}  b6 {[%clk 0:02:23]} 22. Ne2 {[%clk 0:01:36]}  Qc4 {[%clk 0:02:02]} 23. Ng3 {[%clk 0:01:36]}  a4 {[%clk 0:01:58]} 24. Nd2 {[%clk 0:01:15]}  Qb5 {[%clk 0:01:56]} 25. Ndf1 {[%clk 0:01:10]}  Na5 {[%clk 0:01:51]} 26. Ne3 {[%clk 0:01:08]}  Qb3 {[%clk 0:01:50]} 27. Qe2 {[%clk 0:01:04]}  Qe6 {[%clk 0:00:49]} 28. Qb5 {[%clk 0:00:58]}  Qb3 {[%clk 0:00:41]} 29. Qe2 {[%clk 0:00:56]}  c6 {[%clk 0:00:30]} 30. Ngf5 {[%clk 0:00:50]}  Qe6 {[%clk 0:00:24]} 31. Qa6 {[%clk 0:00:36]}  c5 {[%clk 0:00:24]} 32. f3 {[%clk 0:00:18]}  Kh7 {[%clk 0:00:22]} 33. Qb5 {[%clk 0:00:18]}  g6 {[%clk 0:00:20]} 34. Ng3 {[%clk 0:00:14]}  Qb3 {[%clk 0:00:20]} 35. Qe2 {[%clk 0:00:11]}  Kg7 {[%clk 0:00:20]} 36. Kh2 {[%clk 0:00:10]}  h5 {[%clk 0:00:20]} 37. Rd2 {[%clk 0:00:07]}  Rxd2 {[%clk 0:00:19]} 38. Qxd2 {[%clk 0:00:08]}  Re7 {[%clk 0:00:20]} 39. Nef5+ {[%clk 0:00:06]}  gxf5 {[%clk 0:00:17]} 40. Nxf5+ {[%clk 0:00:07]}  Kf8 {[%clk 0:00:18]} 41. Qd8+ {[%clk 0:00:05]}  Re8 {[%clk 0:00:17]} 42. Qxf6 {[%clk 0:00:05]} 1-0


[Site "https://www.chess.com"]

[Event "Titled Tuesday Blitz November 01 Late 2022"]
[White "Zierk, Steven"]
[Black "Kilic, Eray"]
[WhiteFideId "2034255"]
[BlackFideId "44517173"]
[WhiteElo "2494"]
[BlackElo "2328"]
[Result "1-0"]
[Round "07"]
[TimeControl "180+1"]
[Date "2022.11.01"]
[WhiteClock "0:00:47"]
[BlackClock "0:01:08"]

1. e4 {[%clk 0:03:00]}  c5 {[%clk 0:02:59]} 2. Nf3 {[%clk 0:03:00]}  d6 {[%clk 0:02:59]} 3. d4 {[%clk 0:03:00]}  cxd4 {[%clk 0:03:00]} 4. Nxd4 {[%clk 0:03:00]}  Nf6 {[%clk 0:03:01]} 5. Nc3 {[%clk 0:03:01]}  a6 {[%clk 0:03:01]} 6. h3 {[%clk 0:03:01]}  e6 {[%clk 0:03:01]} 7. g4 {[%clk 0:03:01]}  Be7 {[%clk 0:03:01]} 8. Bg2 {[%clk 0:03:00]}  Nfd7 {[%clk 0:03:01]} 9. Be3 {[%clk 0:02:58]}  Qc7 {[%clk 0:03:01]} 10. g5 {[%clk 0:02:53]}  Nc6 {[%clk 0:03:00]} 11. h4 {[%clk 0:02:52]}  Nxd4 {[%clk 0:02:58]} 12. Qxd4 {[%clk 0:02:49]}  Rg8 {[%clk 0:02:32]} 13. f4 {[%clk 0:02:25]}  b5 {[%clk 0:02:31]} 14. f5 {[%clk 0:02:14]}  Bb7 {[%clk 0:02:30]} 15. fxe6 {[%clk 0:02:10]}  fxe6 {[%clk 0:02:31]} 16. Bh3 {[%clk 0:02:10]}  Nc5 {[%clk 0:02:28]} 17. b4 {[%clk 0:02:04]}  e5 {[%clk 0:02:24]} 18. Nd5 {[%clk 0:01:59]}  Qc6 {[%clk 0:02:04]} 19. Qc3 {[%clk 0:01:51]}  Nxe4 {[%clk 0:01:57]} 20. Nc7+ {[%clk 0:01:41]}  Kd8 {[%clk 0:01:57]} 21. Qxc6 {[%clk 0:01:35]}  Bxc6 {[%clk 0:01:58]} 22. Nxa8 {[%clk 0:01:33]}  Bxa8 {[%clk 0:01:58]} 23. Rf1 {[%clk 0:01:23]}  d5 {[%clk 0:01:50]} 24. Bb6+ {[%clk 0:01:08]}  Ke8 {[%clk 0:01:48]} 25. a3 {[%clk 0:01:08]}  d4 {[%clk 0:01:34]} 26. O-O-O {[%clk 0:01:01]}  Nc3 {[%clk 0:01:33]} 27. Rde1 {[%clk 0:00:59]}  Nd5 {[%clk 0:01:28]} 28. Be6 {[%clk 0:00:48]}  Rf8 {[%clk 0:01:06]} 29. Rxf8+ {[%clk 0:00:47]}  Kxf8 {[%clk 0:01:07]} 30. Bxd5 {[%clk 0:00:47]}  Bxd5 {[%clk 0:01:08]} 31. Rxe5 {[%clk 0:00:48]}  Bc4 {[%clk 0:01:07]} 32. Bc5 {[%clk 0:00:47]}  Bxc5 {[%clk 0:01:07]} 33. bxc5 {[%clk 0:00:48]}  d3 {[%clk 0:01:08]} 34. c6 {[%clk 0:00:47]}  dxc2 {[%clk 0:01:08]} 35. c7 {[%clk 0:00:47]} 1-0


[Site "https://www.chess.com"]

[Event "Titled Tuesday Blitz November 01 Late 2022"]
[White "Zilleruelo Irizarry, Diego"]
[Black "Sailer, Mike"]
[WhiteFideId "3101460"]
[BlackFideId "2012901"]
[WhiteElo "1998"]
[BlackElo "2109"]
[Result "1-0"]
[Round "07"]
[TimeControl "180+1"]
[Date "2022.11.02"]
[WhiteClock "0:00:05"]
[BlackClock "0:00:01"]

1. e4 {[%clk 0:03:00]}  d5 {[%clk 0:02:58]} 2. exd5 {[%clk 0:03:00]}  Qxd5 {[%clk 0:02:59]} 3. Nc3 {[%clk 0:03:01]}  Qd6 {[%clk 0:02:59]} 4. Nf3 {[%clk 0:03:01]}  Nf6 {[%clk 0:03:00]} 5. h3 {[%clk 0:03:01]}  c6 {[%clk 0:03:01]} 6. Bc4 {[%clk 0:03:01]}  Bf5 {[%clk 0:03:01]} 7. d3 {[%clk 0:03:02]}  e6 {[%clk 0:03:02]} 8. O-O {[%clk 0:03:02]}  Be7 {[%clk 0:03:02]} 9. Qe2 {[%clk 0:03:03]}  O-O {[%clk 0:03:03]} 10. Bg5 {[%clk 0:03:02]}  h6 {[%clk 0:03:02]} 11. Bh4 {[%clk 0:03:02]}  Nbd7 {[%clk 0:03:02]} 12. Bg3 {[%clk 0:03:03]}  Qb4 {[%clk 0:03:02]} 13. Bb3 {[%clk 0:03:02]}  Nc5 {[%clk 0:02:52]} 14. Bc7 {[%clk 0:02:33]}  Nxb3 {[%clk 0:02:42]} 15. axb3 {[%clk 0:02:34]}  Bd8 {[%clk 0:02:36]} 16. Be5 {[%clk 0:01:55]}  Qe7 {[%clk 0:02:28]} 17. Ne4 {[%clk 0:01:53]}  Nxe4 {[%clk 0:02:18]} 18. dxe4 {[%clk 0:01:53]}  Bh7 {[%clk 0:02:17]} 19. Qc4 {[%clk 0:01:37]}  Bc7 {[%clk 0:02:12]} 20. Bc3 {[%clk 0:01:30]}  Rfd8 {[%clk 0:02:04]} 21. Rfd1 {[%clk 0:01:28]}  a6 {[%clk 0:02:03]} 22. Rd4 {[%clk 0:01:15]}  Bb6 {[%clk 0:01:43]} 23. Rdd1 {[%clk 0:01:09]}  Rxd1+ {[%clk 0:01:40]} 24. Rxd1 {[%clk 0:01:08]}  Rd8 {[%clk 0:01:40]} 25. Re1 {[%clk 0:01:02]}  Qc5 {[%clk 0:01:27]} 26. Qe2 {[%clk 0:01:02]}  Qh5 {[%clk 0:01:10]} 27. Kh2 {[%clk 0:00:49]}  Bc7+ {[%clk 0:01:09]} 28. Kg1 {[%clk 0:00:47]}  Qc5 {[%clk 0:01:05]} 29. Ra1 {[%clk 0:00:26]}  Bg6 {[%clk 0:00:54]} 30. Re1 {[%clk 0:00:24]}  Bh5 {[%clk 0:00:50]} 31. g4 {[%clk 0:00:23]}  Bg6 {[%clk 0:00:50]} 32. Kg2 {[%clk 0:00:23]}  Bf4 {[%clk 0:00:44]} 33. Ra1 {[%clk 0:00:17]}  Qd6 {[%clk 0:00:39]} 34. h4 {[%clk 0:00:12]}  f6 {[%clk 0:00:37]} 35. h5 {[%clk 0:00:12]}  Bf7 {[%clk 0:00:37]} 36. e5 {[%clk 0:00:08]}  fxe5 {[%clk 0:00:14]} 37. Nxe5 {[%clk 0:00:09]}  Qd5+ {[%clk 0:00:08]} 38. f3 {[%clk 0:00:08]}  Bxe5 {[%clk 0:00:02]} 39. Qxe5 {[%clk 0:00:08]}  Qxe5 {[%clk 0:00:03]} 40. Bxe5 {[%clk 0:00:09]}  Rd2+ {[%clk 0:00:03]} 41. Kg3 {[%clk 0:00:10]}  Rxc2 {[%clk 0:00:03]} 42. Rd1 {[%clk 0:00:10]}  Kf8 {[%clk 0:00:02]} 43. Rd7 {[%clk 0:00:06]}  Re2 {[%clk 0:00:02]} 44. Kf4 {[%clk 0:00:05]}  Rd2 {[%clk 0:00:01]} 45. Rxd2 {[%clk 0:00:05]} 1-0


[Site "https://www.chess.com"]

[Event "Titled Tuesday Blitz November 01 Late 2022"]
[White "Aggelis, Nikolaos"]
[Black "Azarov, Sergei"]
[WhiteFideId "4213220"]
[BlackFideId "13501470"]
[WhiteElo "2187"]
[BlackElo "2494"]
[Result "1/2-1/2"]
[Round "08"]
[TimeControl "180+1"]
[Date "2022.11.02"]
[WhiteClock "0:00:33"]
[BlackClock "0:00:03"]

1. d4 {[%clk 0:02:59]}  f5 {[%clk 0:02:59]} 2. g3 {[%clk 0:02:52]}  Nf6 {[%clk 0:02:59]} 3. Bg2 {[%clk 0:02:51]}  e6 {[%clk 0:03:00]} 4. Nf3 {[%clk 0:02:48]}  Be7 {[%clk 0:03:00]} 5. O-O {[%clk 0:02:49]}  O-O {[%clk 0:03:00]} 6. b3 {[%clk 0:02:48]}  d6 {[%clk 0:03:00]} 7. Bb2 {[%clk 0:02:48]}  a5 {[%clk 0:02:55]} 8. a3 {[%clk 0:02:47]}  Ne4 {[%clk 0:02:54]} 9. Nfd2 {[%clk 0:02:46]}  Nxd2 {[%clk 0:02:43]} 10. Nxd2 {[%clk 0:02:45]}  Nc6 {[%clk 0:02:43]} 11. e4 {[%clk 0:02:37]}  f4 {[%clk 0:02:38]} 12. e5 {[%clk 0:02:05]}  Bd7 {[%clk 0:02:36]} 13. Ne4 {[%clk 0:02:01]}  d5 {[%clk 0:02:29]} 14. Nd2 {[%clk 0:01:57]}  Be8 {[%clk 0:02:10]} 15. c4 {[%clk 0:01:56]}  Bg6 {[%clk 0:02:06]} 16. cxd5 {[%clk 0:01:55]}  exd5 {[%clk 0:02:06]} 17. Qf3 {[%clk 0:01:47]}  fxg3 {[%clk 0:01:44]} 18. Qxd5+ {[%clk 0:01:47]}  Bf7 {[%clk 0:01:25]} 19. Qxd8 {[%clk 0:01:47]}  gxh2+ {[%clk 0:01:17]} 20. Kxh2 {[%clk 0:01:42]}  Raxd8 {[%clk 0:01:18]} 21. Bxc6 {[%clk 0:01:38]}  bxc6 {[%clk 0:01:17]} 22. f4 {[%clk 0:01:34]}  c5 {[%clk 0:01:16]} 23. Nf3 {[%clk 0:01:34]}  Bxb3 {[%clk 0:01:13]} 24. Kg3 {[%clk 0:01:25]}  Bd5 {[%clk 0:01:12]} 25. Rac1 {[%clk 0:01:12]}  Rb8 {[%clk 0:01:09]} 26. Bc3 {[%clk 0:01:09]}  c4 {[%clk 0:01:08]} 27. Bxa5 {[%clk 0:01:05]}  Bxa3 {[%clk 0:01:07]} 28. Ra1 {[%clk 0:00:55]}  Rb3 {[%clk 0:01:05]} 29. Bxc7 {[%clk 0:00:52]}  c3 {[%clk 0:00:57]} 30. Rxa3 {[%clk 0:00:49]}  Rxa3 {[%clk 0:00:56]} 31. Bd6 {[%clk 0:00:50]}  Rb3 {[%clk 0:00:48]} 32. Bxf8 {[%clk 0:00:50]}  c2 {[%clk 0:00:43]} 33. Rc1 {[%clk 0:00:48]}  Rxf3+ {[%clk 0:00:29]} 34. Kg4 {[%clk 0:00:48]}  Kxf8 {[%clk 0:00:16]} 35. Rxc2 {[%clk 0:00:48]}  Rd3 {[%clk 0:00:15]} 36. Rc8+ {[%clk 0:00:42]}  Kf7 {[%clk 0:00:13]} 37. Rc7+ {[%clk 0:00:35]}  Kf8 {[%clk 0:00:07]} 38. Rc8+ {[%clk 0:00:35]}  Ke7 {[%clk 0:00:05]} 39. Rc7+ {[%clk 0:00:33]}  Kf8 {[%clk 0:00:03]} 40. Rc8+ {[%clk 0:00:33]} 1/2-1/2


[Site "https://www.chess.com"]

[Event "Titled Tuesday Blitz November 01 Late 2022"]
[White "Ali Abdullahi, Farah"]
[Black "Vargas, Mauricio"]
[WhiteFideId "16100212"]
[BlackFideId "4404572"]
[WhiteElo "2283"]
[BlackElo "2025"]
[Result "1-0"]
[Round "08"]
[TimeControl "180+1"]
[Date "2022.11.02"]
[WhiteClock "0:02:09"]
[BlackClock "0:00:02"]

1. d4 {[%clk 0:02:58]}  d5 {[%clk 0:00:44]} 2. Nf3 {[%clk 0:02:59]}  c6 {[%clk 0:00:44]} 3. c4 {[%clk 0:03:00]}  e6 {[%clk 0:00:45]} 4. cxd5 {[%clk 0:03:00]}  exd5 {[%clk 0:00:44]} 5. Nc3 {[%clk 0:03:01]}  Bg4 {[%clk 0:00:44]} 6. Ne5 {[%clk 0:03:00]}  Nf6 {[%clk 0:00:45]} 7. Bg5 {[%clk 0:02:59]}  Bf5 {[%clk 0:00:43]} 8. e3 {[%clk 0:02:59]}  Bd6 {[%clk 0:00:41]} 9. Bd3 {[%clk 0:02:57]}  Bxd3 {[%clk 0:00:41]} 10. Qxd3 {[%clk 0:02:57]}  Nbd7 {[%clk 0:00:39]} 11. O-O {[%clk 0:02:56]}  Nxe5 {[%clk 0:00:35]} 12. dxe5 {[%clk 0:02:55]}  Bxe5 {[%clk 0:00:35]} 13. Qf5 {[%clk 0:02:54]}  Qd6 {[%clk 0:00:32]} 14. f4 {[%clk 0:02:47]}  g6 {[%clk 0:00:31]} 15. Qd3 {[%clk 0:02:39]}  Bxc3 {[%clk 0:00:31]} 16. Qxc3 {[%clk 0:02:37]}  Ke7 {[%clk 0:00:28]} 17. e4 {[%clk 0:02:32]}  d4 {[%clk 0:00:22]} 18. Qb3 {[%clk 0:02:26]}  Qc5 {[%clk 0:00:20]} 19. e5 {[%clk 0:02:22]}  d3+ {[%clk 0:00:20]} 20. Kh1 {[%clk 0:02:22]}  h6 {[%clk 0:00:15]} 21. Qxb7+ {[%clk 0:02:18]}  Ke6 {[%clk 0:00:13]} 22. Bxf6 {[%clk 0:02:19]}  Rhb8 {[%clk 0:00:12]} 23. Qa6 {[%clk 0:02:17]}  Rxb2 {[%clk 0:00:10]} 24. Qxd3 {[%clk 0:02:13]}  Rab8 {[%clk 0:00:06]} 25. Qh3+ {[%clk 0:02:12]}  Kd5 {[%clk 0:00:02]} 26. Rad1+ {[%clk 0:02:09]} 1-0


[Site "https://www.chess.com"]

[Event "Titled Tuesday Blitz November 01 Late 2022"]
[White "Annaberdiyev, Babageldi"]
[Black "Mikhailuk, Slava"]
[WhiteFideId "14000385"]
[BlackFideId "2012910"]
[WhiteElo "2332"]
[BlackElo "2353"]
[Result "1-0"]
[Round "08"]
[TimeControl "180+1"]
[Date "2022.11.02"]
[WhiteClock "0:02:04"]
[BlackClock "0:00:11"]

1. e4 {[%clk 0:03:00]}  c5 {[%clk 0:02:59]} 2. Nf3 {[%clk 0:03:00]}  Nc6 {[%clk 0:02:59]} 3. d3 {[%clk 0:03:00]}  g6 {[%clk 0:02:59]} 4. Nbd2 {[%clk 0:03:01]}  Bg7 {[%clk 0:02:59]} 5. g3 {[%clk 0:03:02]}  Nf6 {[%clk 0:02:58]} 6. Bg2 {[%clk 0:03:03]}  O-O {[%clk 0:02:58]} 7. O-O {[%clk 0:03:03]}  d6 {[%clk 0:02:59]} 8. Re1 {[%clk 0:03:04]}  Rb8 {[%clk 0:02:58]} 9. Nf1 {[%clk 0:03:04]}  b5 {[%clk 0:02:57]} 10. c3 {[%clk 0:03:04]}  a5 {[%clk 0:02:56]} 11. d4 {[%clk 0:03:05]}  cxd4 {[%clk 0:02:53]} 12. cxd4 {[%clk 0:03:05]}  e5 {[%clk 0:02:53]} 13. d5 {[%clk 0:03:06]}  Ne7 {[%clk 0:02:52]} 14. Bg5 {[%clk 0:03:03]}  h6 {[%clk 0:02:42]} 15. Bxf6 {[%clk 0:03:02]}  Bxf6 {[%clk 0:02:43]} 16. Qd2 {[%clk 0:03:03]}  Bg7 {[%clk 0:02:40]} 17. Rec1 {[%clk 0:03:00]}  Bd7 {[%clk 0:02:37]} 18. Nh4 {[%clk 0:02:50]}  Qb6 {[%clk 0:02:31]} 19. Rc2 {[%clk 0:02:43]}  Rfc8 {[%clk 0:02:30]} 20. Rac1 {[%clk 0:02:43]}  Rxc2 {[%clk 0:02:29]} 21. Rxc2 {[%clk 0:02:44]}  Rc8 {[%clk 0:02:28]} 22. Qc1 {[%clk 0:02:43]}  Rxc2 {[%clk 0:02:25]} 23. Qxc2 {[%clk 0:02:44]}  Qc5 {[%clk 0:02:21]} 24. Ne3 {[%clk 0:02:42]}  Qxc2 {[%clk 0:02:20]} 25. Nxc2 {[%clk 0:02:43]}  Nc8 {[%clk 0:02:19]} 26. Bf1 {[%clk 0:02:40]}  Bf6 {[%clk 0:02:09]} 27. Ng2 {[%clk 0:02:39]}  Bd8 {[%clk 0:02:08]} 28. Bd3 {[%clk 0:02:36]}  Bb6 {[%clk 0:02:07]} 29. Kf1 {[%clk 0:02:36]}  Bc5 {[%clk 0:01:55]} 30. Nge3 {[%clk 0:02:35]}  Nb6 {[%clk 0:01:51]} 31. b3 {[%clk 0:02:35]}  h5 {[%clk 0:01:43]} 32. h4 {[%clk 0:02:34]}  Kf8 {[%clk 0:01:42]} 33. Ke2 {[%clk 0:02:33]}  Ke7 {[%clk 0:01:42]} 34. f3 {[%clk 0:02:33]}  Kd8 {[%clk 0:01:24]} 35. Nd1 {[%clk 0:02:31]}  Nc8 {[%clk 0:01:03]} 36. Nc3 {[%clk 0:02:31]}  Na7 {[%clk 0:01:03]} 37. a3 {[%clk 0:02:24]}  Kc7 {[%clk 0:00:56]} 38. b4 {[%clk 0:02:24]}  axb4 {[%clk 0:00:52]} 39. axb4 {[%clk 0:02:24]}  Bb6 {[%clk 0:00:50]} 40. Na3 {[%clk 0:02:24]}  Bd4 {[%clk 0:00:44]} 41. Ncxb5+ {[%clk 0:02:22]}  Nxb5 {[%clk 0:00:43]} 42. Bxb5 {[%clk 0:02:23]}  Bc3 {[%clk 0:00:42]} 43. Bxd7 {[%clk 0:02:22]}  Kxd7 {[%clk 0:00:41]} 44. Nc2 {[%clk 0:02:23]}  Kc7 {[%clk 0:00:40]} 45. Kd3 {[%clk 0:02:21]}  Bb2 {[%clk 0:00:40]} 46. g4 {[%clk 0:02:19]}  f6 {[%clk 0:00:32]} 47. gxh5 {[%clk 0:02:06]}  gxh5 {[%clk 0:00:31]} 48. Ne3 {[%clk 0:02:07]}  Bd4 {[%clk 0:00:31]} 49. Nf5 {[%clk 0:02:05]}  Bf2 {[%clk 0:00:30]} 50. Ng7 {[%clk 0:02:04]}  Bxh4 {[%clk 0:00:29]} 51. Nxh5 {[%clk 0:02:05]}  Bg5 {[%clk 0:00:29]} 52. Kc4 {[%clk 0:02:04]}  Kb6 {[%clk 0:00:28]} 53. Ng7 {[%clk 0:02:04]}  Kc7 {[%clk 0:00:19]} 54. Nf5 {[%clk 0:02:05]}  Bd2 {[%clk 0:00:17]} 55. Kb5 {[%clk 0:02:04]}  Be1 {[%clk 0:00:17]} 56. Ng7 {[%clk 0:02:03]}  Bd2 {[%clk 0:00:16]} 57. Nh5 {[%clk 0:02:03]}  Bg5 {[%clk 0:00:15]} 58. Ka6 {[%clk 0:02:04]}  Bh4 {[%clk 0:00:11]} 59. b5 {[%clk 0:02:04]} 1-0


[Site "https://www.chess.com"]

[Event "Titled Tuesday Blitz November 01 Late 2022"]
[White "Antonio, Jorge Carlos"]
[Black "Marcolino, Daniel Mattos"]
[WhiteFideId "113190"]
[BlackFideId "2106841"]
[WhiteElo "2247"]
[BlackElo "2073"]
[Result "0-1"]
[Round "08"]
[TimeControl "180+1"]
[Date "2022.11.02"]
[WhiteClock "0:01:18"]
[BlackClock "0:00:31"]

1. d4 {[%clk 0:03:00]}  Nf6 {[%clk 0:02:56]} 2. Nf3 {[%clk 0:02:59]}  d5 {[%clk 0:02:55]} 3. Bf4 {[%clk 0:02:58]}  c5 {[%clk 0:02:54]} 4. e3 {[%clk 0:02:57]}  Nc6 {[%clk 0:02:55]} 5. c3 {[%clk 0:02:57]}  Qb6 {[%clk 0:02:54]} 6. Qb3 {[%clk 0:02:55]}  c4 {[%clk 0:02:54]} 7. Qxb6 {[%clk 0:02:53]}  axb6 {[%clk 0:02:55]} 8. Nbd2 {[%clk 0:02:51]}  b5 {[%clk 0:02:54]} 9. Ng5 {[%clk 0:02:41]}  h6 {[%clk 0:02:45]} 10. Ngf3 {[%clk 0:02:40]}  Bf5 {[%clk 0:02:45]} 11. a3 {[%clk 0:02:37]}  e6 {[%clk 0:02:44]} 12. Rc1 {[%clk 0:02:36]}  Nh5 {[%clk 0:02:11]} 13. Bg3 {[%clk 0:02:33]}  Nxg3 {[%clk 0:02:10]} 14. hxg3 {[%clk 0:02:33]}  Bd6 {[%clk 0:02:09]} 15. Nh4 {[%clk 0:02:31]}  Bh7 {[%clk 0:02:08]} 16. Be2 {[%clk 0:02:30]}  O-O {[%clk 0:01:44]} 17. f3 {[%clk 0:02:24]}  g5 {[%clk 0:01:36]} 18. Kf2 {[%clk 0:02:23]}  gxh4 {[%clk 0:01:36]} 19. Rxh4 {[%clk 0:02:23]}  Kg7 {[%clk 0:01:34]} 20. Rch1 {[%clk 0:02:21]}  Bg6 {[%clk 0:01:35]} 21. Rxh6 {[%clk 0:02:20]}  Rh8 {[%clk 0:01:36]} 22. Rxh8 {[%clk 0:02:20]}  Rxh8 {[%clk 0:01:36]} 23. Rxh8 {[%clk 0:02:19]}  Kxh8 {[%clk 0:01:37]} 24. f4 {[%clk 0:02:18]}  Kg7 {[%clk 0:01:35]} 25. g4 {[%clk 0:02:17]}  f6 {[%clk 0:01:35]} 26. Nf3 {[%clk 0:02:15]}  e5 {[%clk 0:01:32]} 27. dxe5 {[%clk 0:02:07]}  fxe5 {[%clk 0:01:33]} 28. f5 {[%clk 0:02:07]}  Bf7 {[%clk 0:01:31]} 29. g5 {[%clk 0:02:05]}  e4 {[%clk 0:01:21]} 30. Nd4 {[%clk 0:02:01]}  Nxd4 {[%clk 0:01:16]} 31. cxd4 {[%clk 0:02:01]}  b4 {[%clk 0:01:14]} 32. axb4 {[%clk 0:01:59]}  Bxb4 {[%clk 0:01:14]} 33. Kg3 {[%clk 0:01:55]}  Bd2 {[%clk 0:01:14]} 34. Kf4 {[%clk 0:01:55]}  Bc1 {[%clk 0:01:15]} 35. f6+ {[%clk 0:01:45]}  Kg6 {[%clk 0:01:08]} 36. Bg4 {[%clk 0:01:44]}  Bxb2 {[%clk 0:01:03]} 37. Bf5+ {[%clk 0:01:44]}  Kh5 {[%clk 0:01:03]} 38. g4+ {[%clk 0:01:44]}  Kh4 {[%clk 0:00:57]} 39. g6 {[%clk 0:01:44]}  Bxg6 {[%clk 0:00:51]} 40. Bxg6 {[%clk 0:01:43]}  c3 {[%clk 0:00:48]} 41. f7 {[%clk 0:01:32]}  Ba3 {[%clk 0:00:48]} 42. Ke5 {[%clk 0:01:25]}  c2 {[%clk 0:00:46]} 43. Kxd5 {[%clk 0:01:26]}  c1=Q {[%clk 0:00:45]} 44. Bxe4 {[%clk 0:01:27]}  Qc6+ {[%clk 0:00:41]} 45. Ke5 {[%clk 0:01:23]}  Bd6+ {[%clk 0:00:39]} 46. Kf5 {[%clk 0:01:22]}  Qd7+ {[%clk 0:00:39]} 47. Kf6 {[%clk 0:01:22]}  Qe7+ {[%clk 0:00:38]} 48. Kg7 {[%clk 0:01:21]}  Qxe4 {[%clk 0:00:37]} 49. g5 {[%clk 0:01:22]}  Kxg5 {[%clk 0:00:36]} 50. d5 {[%clk 0:01:20]}  Qe5+ {[%clk 0:00:34]} 51. Kg8 {[%clk 0:01:19]}  Kg6 {[%clk 0:00:32]} 52. e4 {[%clk 0:01:18]}  Qg7# {[%clk 0:00:31]} 0-1


[Site "https://www.chess.com"]